Cogmind - Beta 16 @@@ ROGUE MODE // 2025.11.24 @ 01:08:21 Player: puppuppit Result: Self-destructed Performance ------------- Evolutions (2) 1000 Regions Visited (5) 1000 Robots Destroyed (141) 705 Value Destroyed (3316) 3316 Prototype IDs (8) 160 Alien Tech Used (0) 0 Bonus (301) 301 TOTAL SCORE: 6482 Bonus ------- High Alert Combat Kills 301 Cogmind --------- Core Integrity 422/550 Matter 221/300 Energy 3/100 System Corruption 6% Temperature Cool (4) Movement Flying (37) Location -8/Materials Parts ------- > --- POWER (1) -------- (None) > --- PROPULSION (3) --- Xenon Bombardment Thruster Xenon Bombardment Thruster Xenon Bombardment Thruster > --- UTILITY (4) ------ Hacking Suite Hacking Suite Hacking Suite > --- WEAPON (3) ------- Autogun > --- INVENTORY (5) ---- Weapon Cycler Splice Drone Bay (6/6) Heavy Assault Cannon Flak Cannon Peak State ------------ > --- POWER ------------ Reinforced Deuterium Engine > --- PROPULSION ------- Armored Treads Advanced Treads Advanced Treads > --- UTILITY ---------- High-capacity Storage Unit Hacking Suite Hacking Suite Hacking Suite > --- WEAPON ----------- Autogun Assault Cannon Advanced EMP Blaster > --- INVENTORY -------- Fission Core Light Treads Light Treads Improved Treads Large Storage Unit High-capacity Matter Pod High-capacity Matter Pod Weapon Cycler Improved Propulsion Shielding Authchip [R/Combat] High-powered Tractor Beam Splice Drone Bay Autogun Enhanced Autogun Heavy Assault Cannon Flak Cannon Flak Cannon Improved Grenade Launcher Plasma Cutter [Rating: 37] Favorites ----------- Power Ion Engine Engine Ion Engine Power Core Nuclear Core Propulsion Light Treads Treads Light Treads Hover Unit Aerolev Unit Flight Unit Xenon Bombardment Thruster Utility Hacking Suite Device Improved Terrain Scanner Storage High-capacity Storage Unit Processor Targeting Computer Hackware Hacking Suite Protection Hardened Medium Armor Plating Weapon Heavy Assault Rifle Energy Gun Medium Laser Ballistic Gun Heavy Assault Rifle Ballistic Cannon Assault Cannon Launcher Improved Grenade Launcher Build | -11 -10 -10 -10 -9 -8 ------- Run | Yrd Mat Min Exi Min Mat Slots Evolved 4 | . . . . . 4 Power . | . . . . . . Propulsion 1 | . . . . . 1 Utility 2 | . . . . . 2 Weapon 1 | . . . . . 1 Parts Attached 68 | 8 11 3 1 1 44 Power 10 | 1 1 1 . 1 6 Engine 8 | 1 1 1 . 1 4 Core 2 | . . . . . 2 Reactor . | . . . . . . Propulsion 19 | 2 3 . . . 14 Treads 15 | 2 3 . . . 10 Leg . | . . . . . . Wheel . | . . . . . . Hover 1 | . . . . . 1 Flight 3 | . . . . . 3 Utility 20 | 2 4 1 1 . 12 Device 5 | 1 . . . . 4 Storage 6 | 1 2 1 1 . 1 Processor 2 | . 1 . . . 1 Hackware 4 | . 1 . . . 3 Protection 3 | . . . . . 3 Artifact . | . . . . . . Weapon 19 | 3 3 1 . . 12 Energy Gun 2 | 2 . . . . . Energy Cannon . | . . . . . . Ballistic Gun 11 | 1 2 . . . 8 Ballistic Cannon 1 | . . . . . 1 Launcher 5 | . 1 1 . . 3 Special Weapon . | . . . . . . Impact Weapon . | . . . . . . Slashing Weapon . | . . . . . . Piercing Weapon . | . . . . . . Special Melee Weapon . | . . . . . . Unidentified Prototypes 5 | . . . . . 5 Corrupted Parts 1 | . . . . . 1 System Corruption 4 | . . . . . 4 Parts Lost 9 | . . 1 . . 8 Power . | . . . . . . Propulsion 3 | . . . . . 3 Utility 3 | . . . . . 3 Weapon 3 | . . 1 . . 2 Highest Loss Streak 4 | . . 1 . . 4 To Critical Strikes . | . . . . . . Average Backups 16 | . 11 16 19 20 19 Power 1 | . . 1 3 3 2 Propulsion 1 | . . 1 2 2 2 Utility 6 | . 2 6 9 9 6 Weapon 6 | . 7 8 5 5 7 Tool/Special . | . . . . . . Unused Backups 39 | . 5 4 3 . 27 Power 3 | . . . . . 3 Propulsion 2 | . . . . . 2 Utility 13 | . . 2 1 . 10 Weapon 20 | . 5 2 2 . 11 Tool/Special 1 | . . . . . 1 Average Slot Usage (%) 98 | . 99 100 100 100 98 Engine 9 | . 13 14 14 14 4 Core 1 | . . . . . 3 Treads 27 | . 27 28 28 28 26 Device 1 | . 1 . . . 1 Storage 11 | . 14 14 14 14 8 Hackware 14 | . 10 14 14 14 17 Protection 3 | . . . . . 6 Ballistic Gun 26 | . 27 26 28 27 25 Peak Build Rating 37 | 9 13 17 17 17 37 Average Rating 20 | 6 11 13 17 15 29 On Entrance 11 | . 9 12 17 17 16 Avg Prop Armor Cover (%) 10 | . . . . 10 10 Naked Turns . | . . . . . . Heaviest Build 91 | 15 91 51 51 51 72 Greatest Support 67 | 40 40 40 40 40 67 Greatest Overweight (x) 2 | . 2 1 1 2 2 Average Overweight (x) . | . . . 1 1 . Largest Inventory Capacity 25 | 8 25 20 20 20 20 Average Capacity 18 | 7 16 17 20 20 19 Most Carried 20 | 1 16 20 20 20 20 Average Carried 16 | . 11 16 19 19 19 Final Capacity 20 | 8 15 20 20 20 5 Final Carried 20 | 1 15 20 20 20 5 Class Distribution -------------------- 55% | Mutant 25% | Hacker-Tank 6% | Scavenger-Tank 4% | Scavenger-Skirmisher 4% | Hacker-Gunner Dominant Class ---------------- Mutant | -10/Materials Mutant | -10/Mines Mutant | -10/Exiles Mutant | -9/Mines Hacker-Tank | -8/Materials Resources | -11 -10 -10 -10 -9 -8 ----------- Run | Yrd Mat Min Exi Min Mat Matter Collected 4228 | 420 846 271 . 159 2532 Remotely . | . . . . . . Salvage Created 4882 | 156 1192 116 . 185 3233 Parts 295 | 15 69 3 . 19 189 Haulers Intercepted 8 | . 2 . . . 6 Recyclers Shooed 5 | 1 1 . . . 3 Parts Field Recycled . | . . . . . . Retrieved Matter . | . . . . . . Parts Self-Destructed . | . . . . . . Prevented . | . . . . . . Parts Restored . | . . . . . . Kills | -11 -10 -10 -10 -9 -8 ------- Run | Yrd Mat Min Exi Min Mat Combat Hostiles Destroyed 94 | . 18 15 . 9 52 Guns 45 | . 12 3 . 1 29 Cannons 1 | . . . . . 1 AOE 47 | . 6 12 . 8 21 Classes Destroyed 16 | 3 5 1 . . 7 Worker 12 | 2 4 . . . 6 Builder 6 | . . . . . 6 Tunneler 7 | 3 1 . . 2 1 Hauler 8 | . 2 . . . 6 Recycler 13 | 1 6 . . . 6 Operator 6 | . 3 . . . 3 Watcher 8 | . 3 . . . 5 Swarmer 23 | . 9 . . 6 8 Grunt 43 | . 9 2 . 3 29 Brawler 2 | . . . . . 2 Duelist 1 | . . . . . 1 Protector 2 | . . . . . 2 Sentry 6 | . . . . . 6 Hunter 3 | . . . . . 3 Heavy 1 | . . . . . 1 Assembled 13 | . . 13 . . . Best Kill Streak 12 | 3 4 12 . 4 11 Combat Bots Only 12 | . 3 12 . 3 7 Max Kills in Single Turn 4 | 1 3 4 . 4 3 Gunslinging . | . . . . . . Exploded 4 | . 3 4 . 3 3 Melee . | . . . . . . Uniques/NPCs Destroyed . | . . . . . . Combat | -11 -10 -10 -10 -9 -8 -------- Run | Yrd Mat Min Exi Min Mat Hostile Shots Fired 281 | . 76 32 . 21 152 Missed 83 | . 20 12 . 5 46 Hits 198 | . 56 20 . 16 106 Projectile 198 | . 56 20 . 16 106 AOE 1 | . . . . . 1 Critical Strikes 3 | . . . . . 3 Damage Taken 3091 | . 672 246 . 206 1967 Core 345 | . 130 23 . 64 128 Absorbed by Shields . | . . . . . . Regen/Repaired (Parts) 662 | . 406 . . . 256 Core Remaining (%) 56 | 100 . . . 13 . Volleys Fired 274 | 14 76 19 . 10 155 Largest 3 | 2 2 2 . 2 3 Hottest 96 | 70 53 60 . 53 96 Shots Fired 661 | 28 148 31 . 17 437 Gun 608 | 28 142 18 . 13 407 Cannon 6 | . . . . . 6 Launcher 47 | . 6 13 . 4 24 Special . | . . . . . . Kinetic 600 | 14 142 18 . 13 413 Thermal 14 | 14 . . . . . Explosive 30 | . 6 13 . 4 7 Electromagnetic 17 | . . . . . 17 Robot Hit Streak 11 | 5 11 5 . 4 9 Robot Miss Streak 7 | 2 4 4 . 2 7 Penetration Max . | . . . . . . Secondary Targets 3 | . 2 . . . 1 Max Gunslinging Chain 1 | . 1 . . . 1 Shots Hit Robots 370 | 18 91 11 . 8 242 Core Hits 259 | 7 47 36 . 13 156 Critical Kills 1 | . 1 . . . . Critical Parts Destroyed 3 | . 1 . . . 2 Critical Strikes 5 | 1 2 . . . 2 Burn 1 | 1 . . . . . Destroy 4 | . 2 . . . 2 Melee Attacks . | . . . . . . Impact . | . . . . . . Slashing . | . . . . . . Piercing . | . . . . . . Sneak Attacks . | . . . . . . Combat Hostiles . | . . . . . . Follow-up Attacks . | . . . . . . Damage Inflicted 9715 | 251 1882 1034 . 397 6151 Guns 5774 | 251 1426 131 . 94 3872 Cannons 66 | . . . . . 66 Explosions 3875 | . 456 903 . 303 2213 Melee . | . . . . . . Ramming . | . . . . . . Kinetic 5698 | 109 1426 131 . 94 3938 Thermal 562 | 142 . . . . 420 Explosive 2224 | . 456 903 . 303 562 Electromagnetic 1231 | . . . . . 1231 Impact . | . . . . . . Slashing . | . . . . . . Piercing . | . . . . . . Highest Corruption 6 | . . . . . 6 Average Corruption 2 | . . . . . 2 Corruption Purged . | . . . . . . Corruption Blocked . | . . . . . . Effects 60 | . . . . . 60 Message Errors 10 | . . . . . 10 Matter Fused 13 | . . . . . 13 Heat Flow Errors 12 | . . . . . 12 Energy Discharges 6 | . . . . . 6 Parts Fused 1 | . . . . . 1 Data Loss (minor) 10 | . . . . . 10 Data Loss (major) 3 | . . . . . 3 Misfires 4 | . . . . . 4 Weapon Failures 1 | . . . . . 1 Overload Shots . | . . . . . . Overflow Damage 76 | . . 16 . . 60 Projectiles . | . . . . . . Explosions 76 | . . 16 . . 60 Melee . | . . . . . . Knockbacks 1 | . . . . . 1 Impact . | . . . . . . Kinetic 1 | . . . . . 1 Secondary . | . . . . . . Self-Inflicted Damage 300 | . 65 . . 32 203 Shots 12 | . 3 . . 1 8 Rammed . | . . . . . . Targets Rammed . | . . . . . . Kicked . | . . . . . . Crushed . | . . . . . . Highest Temperature 342 | 45 27 3 . 26 342 Average Temperature 72 | 19 4 3 . 15 84 Received Heat Transfer 993 | . 252 33 . 51 657 Effects 5 | . . . . . 5 Energy Bleed 2 | . . . . . 2 Interference 3 | . . . . . 3 Siege Activations . | . . . . . . Martial Activations . | . . . . . . Shielding Activations . | . . . . . . Robots Disrupted 1 | . . . . . 1 Combat Hostiles 1 | . . . . . 1 Robots Corrupted 1 | . . . . . 1 Combat Hostiles 1 | . . . . . 1 Parts Fried 4 | . . . . . 4 Impact Corruptions . | . . . . . . Robots Melted . | . . . . . . Combat Hostiles . | . . . . . . Parts Melted . | . . . . . . Heat Transferred 1075 | 481 . . . . 594 Parts Sabotaged . | . . . . . . Parts Stolen . | . . . . . . Parts Stripped . | . . . . . . Power Chain Reactions 7 | . . . . . 7 Alert | -11 -10 -10 -10 -9 -8 ------- Run | Yrd Mat Min Exi Min Mat Maximum Alert Level 3 | . 1 . . . 3 Low Security (%) 66 | 100 65 100 . 100 49 Level 1 21 | . 34 . . . 24 Level 2 10 | . . . . . 22 Level 3 1 | . . . . . 2 Level 4 . | . . . . . . Level 5 . | . . . . . . High Security . | . . . . . . Max Security . | . . . . . . Sterilizations 1 | . . . . . 1 Peak Influence 832 | 10 293 158 . 105 832 Initial 102 | . . 102 . . 1 Average 174 | 1 101 60 . 25 288 Influence Increases 2685 | 30 670 115 . 265 1605 Destroy 0b10 Robot/C 1580 | . 360 40 . 180 1000 Destroy 0b10 Robot/NC 310 | 30 95 . . 10 175 Destroy Leader 352 | . 80 10 . 30 232 Successful Hack 26 | . 21 . . . 5 Select Force Hacks 60 | . 60 . . . . Disable Machine 120 | . 15 15 . 30 60 Destroy Structure 192 | . 39 50 . 15 88 Lose Combat Pursuer 45 | . . . . . 45 Influence Decreases 1858 | 30 406 379 . 260 783 Entered New Map 166 | . . 162 . . 4 Time Decay 1611 | 30 406 207 . 260 708 Lost Part 81 | . . 10 . . 71 Squads Dispatched 13 | . 4 . . . 9 Investigation 5 | . 3 . . . 2 Extermination . | . . . . . . Reinforcement 4 | . 1 . . . 3 Assault 3 | . . . . . 3 Garrison 1 | . . . . . 1 Intercept . | . . . . . . Searches Triggered . | . . . . . . Construction Impeded . | . . . . . . Haulers Reinforced . | . . . . . . Active Scanning Responses . | . . . . . . Cargo Convoy Interrupts . | . . . . . . Stealth | -11 -10 -10 -10 -9 -8 --------- Run | Yrd Mat Min Exi Min Mat Distress Signals 6 | . 2 . . . 4 Communications Jammed . | . . . . . . Distress Signals . | . . . . . . Times Spotted 123 | . 25 19 . 9 70 Peak Tracking Total 13 | . 4 13 . 3 7 Tactical Retreats 6 | . . 3 . . 3 Traps | -11 -10 -10 -10 -9 -8 ------- Run | Yrd Mat Min Exi Min Mat Traps Triggered 8 | . 2 . . . 6 Indirectly . | . . . . . . Trap Hack Attempts . | . . . . . . Triggered . | . . . . . . Disarmed . | . . . . . . Reprogrammed . | . . . . . . Reused . | . . . . . . Traps Extracted . | . . . . . . Installed . | . . . . . . Triggered . | . . . . . . Machines | -11 -10 -10 -10 -9 -8 ---------- Run | Yrd Mat Min Exi Min Mat Machines Disabled 9 | . 2 1 . 2 4 Max in Single Turn 2 | . 1 1 . 2 1 Machines Repaired . | . . . . . . Machines Dismantled . | . . . . . . Machines Sabotaged . | . . . . . . Overloaded Fab Kills . | . . . . . . Hacking | -11 -10 -10 -10 -9 -8 --------- Run | Yrd Mat Min Exi Min Mat Machines Accessed 25 | . 10 1 1 . 13 Terminals 16 | . 7 . . . 9 Fabricators . | . . . . . . Repair Stations 2 | . 1 . . . 1 Recycling Units 4 | . 2 . . . 2 Scanalyzers 1 | . . . . . 1 Garrison Access . | . . . . . . Total Hacks 85 | . 40 1 1 . 43 Successful 63 | . 30 1 1 . 31 Failed 22 | . 10 . . . 12 Catastrophic 2 | . 2 . . . . Database Lockouts . | . . . . . . Manual 49 | . 23 . . . 26 Terminals 46 | . 20 . . . 26 Fabricators . | . . . . . . Repair Stations 16 | . 12 . . . 4 Recycling Units 14 | . 8 . . . 6 Scanalyzers 7 | . . . . . 7 Garrison Access . | . . . . . . Terminal Hacks 7 | . 3 1 1 . 2 Record 1 | . . . 1 . . Robot Analysis 2 | . 1 . . . 1 Prototype ID Bank 1 | . 1 . . . . Open Door 1 | . . 1 . . . Terminal Index 2 | . 1 . . . 1 Fabricator Hacks . | . . . . . . Repair Station Hacks 16 | . 12 . . . 4 Scan Component 8 | . 6 . . . 2 Repair 8 | . 6 . . . 2 Recycling Unit Hacks . | . . . . . . Scanalyzer 7 | . . . . . 7 Insert Component 3 | . . . . . 3 Analyze 4 | . . . . . 4 Garrison Access Hacks . | . . . . . . Unauthorized Hacks 33 | . 15 . . . 18 Terminals 21 | . 9 . . . 12 Botnet 5 | . 3 . . . 2 Operators 2 | . 1 . . . 1 Skim 14 | . 5 . . . 9 Fabricators . | . . . . . . Repair Stations . | . . . . . . Recycling Units 12 | . 6 . . . 6 Reject 3 | . 1 . . . 2 Recyclers 4 | . 2 . . . 2 Mask 3 | . 1 . . . 2 Tunnel 2 | . 2 . . . . Scanalyzers . | . . . . . . Garrison Access . | . . . . . . Data Cores Recovered 2 | . 1 . . . 1 Used 1 | . 1 . . . . Hacking Detections 22 | . 10 . . . 12 Full Trace Events . | . . . . . . Feedback Events . | . . . . . . Feedback Blocked . | . . . . . . Robot Schematics Acquired . | . . . . . . Robots Built . | . . . . . . Authchips . | . . . . . . Time . | . . . . . . Total Robot Build Rating . | . . . . . . Part Schematics Acquired 3 | . . . . . 3 Parts Built . | . . . . . . Authchips . | . . . . . . Time . | . . . . . . Total Part Build Rating . | . . . . . . Part Studies Acquired . | . . . . . . Parts Repaired 8 | . 6 . . . 2 Time 238 | . 168 . . . 70 Parts Recycled . | . . . . . . Recycled Matter . | . . . . . . Retrieved Matter . | . . . . . . Retrieved Components . | . . . . . . Parts Scanalyzed 3 | . . . . . 3 Part Schematics Acquired 3 | . . . . . 3 Parts Damaged . | . . . . . . Bothacking | -11 -10 -10 -10 -9 -8 ------------ Run | Yrd Mat Min Exi Min Mat Used RIF Installer . | . . . . . . Robots Hacked . | . . . . . . Non-combat . | . . . . . . Combat . | . . . . . . Robot Hacks Applied . | . . . . . . Relay Couplers Released . | . . . . . . Fabnet Peak Effective % . | . . . . . . Robots Rewired . | . . . . . . Allies Hacked . | . . . . . . Hacks Repelled . | . . . . . . Allies | -11 -10 -10 -10 -9 -8 -------- Run | Yrd Mat Min Exi Min Mat Total Allies . | . . . . . . Largest Group . | . . . . . . Highest-Rated Group . | . . . . . . Highest-Rated Ally . | . . . . . . Total Orders . | . . . . . . Ally Attacks . | . . . . . . Total Damage . | . . . . . . Kills . | . . . . . . Allies Corrupted . | . . . . . . Allies Melted . | . . . . . . Intel | -11 -10 -10 -10 -9 -8 ------- Run | Yrd Mat Min Exi Min Mat Active Infowar (turns) 1079 | 67 247 . . . 765 Terrain 1040 | 67 247 . . . 726 Structural 39 | . . . . . 39 Robot Analysis Total 2 | . 1 . . . 1 Derelict Logs Recovered 1 | . . . . 1 . Drone Launches . | . . . . . . Drone Recoveries . | . . . . . . Exploration | -11 -10 -10 -10 -9 -8 ------------- Run | Yrd Mat Min Exi Min Mat Turns Passed 8926 | 160 2347 598 634 1215 3972 Spaces Moved 4059 | 69 923 268 262 487 2050 Core 12 | 4 . . . . 8 Treads 3917 | 65 923 268 262 487 1912 Legs . | . . . . . . Wheels . | . . . . . . Hover . | . . . . . . Flight 130 | . . . . . 130 Fastest Speed 34 | 50 160 160 240 240 34 Average Speed 187 | 153 203 198 240 241 160 Slowest Speed 320 | 160 320 240 240 320 320 Overloaded Moves . | . . . . . . Propulsion Burnouts . | . . . . . . Robots Hopped 2 | . . . . . 2 Potential Cave-ins . | . . . . . . Cave-ins Triggered . | . . . . . . Exploration Rate (%) 66 | 4 96 49 60 99 93 Regions Visited 5 Branch Regions 3 Pre-discovered Areas 7 | . 2 . 1 1 3 Known Exits Taken 2 | . 1 . . 1 . Unknown Exits Taken 3 | 1 . 1 1 . . Scrap Searched 3 | . . 1 . 2 . Spaces Dug 10 | . . . . . 10 Terrain Destroyed 202 | . 33 81 . 15 73 Melee . | . . . . . . Projectile 3 | . . . . . 3 AOE 199 | . 33 81 . 15 70 Terrain Rammed . | . . . . . . Walls Destroyed . | . . . . . . Machines Disabled . | . . . . . . Actions | -11 -10 -10 -10 -9 -8 --------- Run | Yrd Mat Min Exi Min Mat Total 4851 | 91 1239 309 271 505 2436 Wait 245 | . 186 . . . 59 Move 4049 | 68 922 266 261 486 2046 Hop 2 | . . . . . 2 Pick Up 72 | 1 20 10 4 1 36 Fast Attach 34 | 7 8 . . . 19 Attach 15 | . 1 1 . . 13 Detach 6 | . 3 . . . 3 Swap 85 | 1 13 7 1 7 56 Drop 69 | . 10 6 5 1 47 Fire 274 | 14 76 19 . 10 155 Melee . | . . . . . . Ram . | . . . . . . Kick . | . . . . . . Crush . | . . . . . . Escape Stasis . | . . . . . . Rewire . | . . . . . . Trap . | . . . . . . Miscellaneous . | . . . . . . Route ------- -11/Scrapyard -10/Materials (discovered 6 exits: *Mat x3 / *Min x2 / Sub) -10/Mines (discovered 3 exits: *Mat x2 / *Exi) -10/Exiles -9/Mines (discovered 2 exits: *Mat x2) -8/Materials (discovered 3 exits: *Fac x3) History --------- Turn | Location | Event 11 | -11/Scrapyard | Discovered new exit (range 14) 161 | -11/Scrapyard | Entered Materials 316 | -10/Materials | Build established: Mutant 316 | -10/Materials | Discovered new exit (range 15) 677 | -10/Materials | Discovered new exit (range 16) 859 | -10/Materials | Discovered new exit (range 13) 979 | -10/Materials | Identified exit to Materials 1036 | -10/Materials | Learned Storage interactive machine intel 1136 | -10/Materials | Identified exit to Mines 1136 | -10/Materials | Identified exit to Subcaves 1136 | -10/Materials | Learned location of 1 exit from Materials 1169 | -10/Materials | Learned location of 2 exits from Materials 1961 | -10/Materials | Core integrity fell below 50% 2262 | -10/Materials | Repaired Lgt. Treads 2289 | -10/Materials | Repaired Lgt. Treads 2317 | -10/Materials | Repaired Ion Engine 2350 | -10/Materials | Repaired Hvy. Assault Rifle 2384 | -10/Materials | Repaired Hvy. Assault Rifle 2411 | -10/Materials | Repaired Grenade Launcher 2508 | -10/Materials | Entered Mines 2631 | -10/Mines | Assembled infested the area 2636 | -10/Mines | Assisted by a Guerilla fighting off Assembled 2745 | -10/Mines | Destroyed 12 combat bots 2763 | -10/Mines | Found the Drone Emporium 2775 | -10/Mines | Found Prototype Device 3097 | -10/Mines | Deemed a non-threat by the Exiles lab entrance 3097 | -10/Mines | Discovered new exit (range 5) 3106 | -10/Mines | Entered Exiles 3190 | -10/Exiles | Met 8R-AWN 3229 | -10/Exiles | Met EX-HEX 3371 | -10/Exiles | Met EX-DEC 3412 | -10/Exiles | Learned location of Zion (-6) 3599 | -10/Exiles | Met EX-BIN 3709 | -10/Exiles | Discovered new exit (range 14) 3740 | -10/Exiles | Entered Mines 3741 | -9/Mines | Identified exit to Materials 3747 | -9/Mines | Core integrity fell below 20% 4131 | -9/Mines | A weapon hastily lodged in a ceiling crevice suddenly fell to the ground 4201 | -9/Mines | Found a damaged Exp. Sensor Array with a note attached 4207 | -9/Mines | Found Prototype Device 4955 | -9/Mines | Entered Materials 4955 | -8/Materials | Evolved 4 slots: Propulsion x1, Utility x2, Weapon x1 4956 | -8/Materials | Identified exit to Factory 4956 | -8/Materials | Identified Splice Drone Bay 4957 | -8/Materials | Identified Exp. Sensor Array 5255 | -8/Materials | Build established: Scavenger-Skirmisher 5641 | -8/Materials | Build established: Hacker-Tank 6220 | -8/Materials | Garrison activated, responded to threat 6343 | -8/Materials | Lost 4 parts (2n1u1w) 7274 | -8/Materials | Learned Storage trap positions 7313 | -8/Materials | Learned 4 Recycling zone layouts 7341 | -8/Materials | Learned Storage emergency access door positions 7367 | -8/Materials | Learned Storage emergency access door positions 7368 | -8/Materials | Learned Factory fabricator intel 7369 | -8/Materials | Learned location of Extension (-5) 7378 | -8/Materials | Learned 8 Factory zone layouts 8155 | -8/Materials | First assault squad dispatched 8676 | -8/Materials | Repaired Adv. Treads 8716 | -8/Materials | Repaired Imp. Treads? 8822 | -8/Materials | Sterilization system engaged 8822 | -8/Materials | Non-combat units ordered to evacuate 8839 | -8/Materials | Destroyed 7 combat bots 8842 | -8/Materials | Build established: Hacker-Gunner 8922 | -8/Materials | Combat units ordered to evacuate 8927 | -8/Materials | Self-destructed Last Messages --------------- 08838_ System corrupted: Component data lost. 08853_ System corrupted: Matter fused (-6). 08855_ M-28 Smith exits level. 08869_ Dropped Hcp. Storage Unit. 08870_ Dropped Rnf. Deuterium Engine. 08870_ Dropped Autogun. 08871_ Dropped Assault Cannon. 08871_ Assault Cannon crushed and broken. 08875_ Acquired Xenon Bombardment Thruster. 08877_ Dropped Adv. Treads. 08878_ Acquired Xenon Bombardment Thruster. 08879_ Dropped Adv. Treads. 08880_ Acquired Xenon Bombardment Thruster. 08888_ Acquired 33 matter. 08888_ Acquired 75 matter. 08893_ System corrupted: Matter fused (-6). 08917_ 1CI#YSYZOSVDOFD4WYLO182:EEPRIQY5 08922_ ALERT: All combat units evacuate. 08927_ ALERT: Machine network offline. 08927_ Garrison Access under remote control. Map ----- +----------------------------------------------------+ | | | | | | | | | | | | | | | | | | | ???????#???########?????????? | | ??????# ########### | | ??????# """"" # !! | | ??????# """"""""" # !! """ | | ??????# """ """ # !! """ | | ??????? # """ | | ????????? / # | | ??????????? ??# | | ???# ####+##+############### | | ???# | | ???# | | ???## ######## """ """ ]] | | ?####+######## """ """ ]] | | ?# * # """ """ ] | | ?# " # | | ?# "G" o # | | ?# "@" """" # ############# | | ?# Y """" # ###########?# | | # """" + ## ] ### | | ## # ## + | | ?########+#### ## ### | | ???# # # #?# | | ???#" """ + # [ #?? | | ???#" """ # T + #?? | | ???#" """ # # #?? | | ???#T ## ### #?? | | ???#" """ ## #?# #?? | | ???#" """ ## #?############ | | ???#" """ ##+####### # | | ???# # ## ! # | | ???########## ! ## ! # | | ????????????# ## ! # | | ????????????# / ## # | | ?????????############# # | | ?????#???# ! #######+### | | ?????????# """" # | | ??#??????# """" # | | ???????#?#[ """" # | | ?????????# + | | ?????????# """" # | | ????#????# """" !# | +----------------------------------------------------+ Best States ------------- Heat Dissipation 31 Energy Generation 16 Energy Capacity 290 Matter Stores 300 Matter Capacity 300 Sight Range 16 Terrain Scan Range 16 Terrain Scan Density 10 Armor Coverage 225 Evasion (%) 63 Targeting Accuracy 6 Recoil Reduction 3 Offensive Hacking 30 Authchip Count 1 Item Schematics ----------------- Cmb. Airjet | -8/Materials | Scanalyzed Fission Core | -8/Materials | Scanalyzed Gauss Rifle | -8/Materials | Scanalyzed Robot Schematics ------------------ None Fabricated ------------ Nothing Repaired ---------- Lgt. Treads | 23% | -10/Materials Lgt. Treads | 30% | -10/Materials Ion Engine | 35% | -10/Materials Hvy. Assault Rifle | 40% | -10/Materials Hvy. Assault Rifle | 43% | -10/Materials Grenade Launcher | 53% | -10/Materials Adv. Treads | 21% | -8/Materials Imp. Treads | 20% | -8/Materials Studied --------- None Alien Tech Used ----------------- None Achievements -------------- None Challenges ------------ None Game ------ Seed TerrorAntimissileSpecial Manual? 0 Play Time 00:46:35 Cumulative 632.9 hours Start 2025.11.24 @ 00:22:45 End 2025.11.24 @ 01:08:21 Sessions 1 Manual Loads 0 Difficulty Rogue Special Mode None Game No. 321 Rogue 321 Adventurer 0 Explorer 0 Win Type - Total 7 Types 3/0/2/1/0/0/0/0/0/1 Lore% 87 Gallery% 78 Achievement% 47 Wizard Run 0 Options --------- Layout 2 ASCII 0 Keyboard 1 Movement Vi Keybinds 0 Fullscreen 1 Font 16/SmallcapsGlow Map View 55x47 Zoom Use 0% Tactical HUD 1 Map Filters NONE Filters NONE Steam 0 RUN: fb4abc85-a6fc-4e8b-a7a1-a8d997ec3a1b